Cogmind - Beta 13 @@@ ROGUE MODE // 2024.04.25 @ 22:04:36 Player: monkeman Result: Destroyed by D-53 Grenadier with Mini Grenade Launcher Performance ------------- Evolutions (0) 0 Regions Visited (2) 400 Robots Destroyed (18) 90 Value Destroyed (375) 375 Prototype IDs (0) 0 Alien Tech Used (0) 0 Bonus (0) 0 TOTAL SCORE: 865 Bonus ------- None Cogmind --------- Core Integrity 0/250 Matter 290/300 Energy 250/250 System Corruption 0% Temperature Cool (0) Movement Core (1450) Ox28 Location -10/Mines Parts ------- > --- POWER (1) -------- Ion Engine > --- PROPULSION (2) --- (None) > --- UTILITY (2) ------ Heat Sink Huge Storage Unit > --- WEAPON (2) ------- (None) > --- INVENTORY (25) --- Ion Engine Light Treads Large Storage Unit Medium Matter Pod (50) Signal Interpreter Improved Terrain Scanner Seismic Detector Improved Targeting Computer Improved Targeting Computer Hacking Suite Tractor Beam Particle Gun Particle Cannon Particle Cannon Light Assault Rifle Mini Grenade Launcher Mini Grenade Launcher Peak State ------------ > --- POWER ------------ Ion Engine > --- PROPULSION ------- Light Treads Light Treads > --- UTILITY ---------- Huge Storage Unit Improved Terrain Scanner > --- WEAPON ----------- Particle Cannon Mini Grenade Launcher > --- INVENTORY -------- Ion Engine Light Treads Wheel Large Storage Unit Signal Interpreter Seismic Detector Improved Targeting Computer Hacking Suite Tractor Beam Particle Gun Particle Cannon Mini Grenade Launcher [Rating: 12] Favorites ----------- Power Ion Engine Engine Ion Engine Propulsion Light Treads Treads Light Treads Wheel Wheel Utility Huge Storage Unit Device Improved Terrain Scanner Storage Huge Storage Unit Weapon Particle Cannon Energy Gun EM Pulse Gun Energy Cannon Particle Cannon Ballistic Gun Assault Rifle Launcher Mini Grenade Launcher Build | -11 -10 -10 ------- Run | Yrd Mat Min Slots Evolved . | . . . Power . | . . . Propulsion . | . . . Utility . | . . . Weapon . | . . . Parts Attached 19 | 7 8 4 Power 2 | 1 . 1 Engine 2 | 1 . 1 Core . | . . . Reactor . | . . . Propulsion 5 | 2 . 3 Treads 4 | 2 . 2 Leg . | . . . Wheel 1 | . . 1 Hover . | . . . Flight . | . . . Utility 6 | 2 4 . Device 2 | 1 1 . Storage 4 | 1 3 . Processor . | . . . Hackware . | . . . Protection . | . . . Artifact . | . . . Weapon 6 | 2 4 . Energy Gun 1 | 1 . . Energy Cannon 2 | . 2 . Ballistic Gun 2 | 1 1 . Ballistic Cannon . | . . . Launcher 1 | . 1 . Special Weapon . | . . . Impact Weapon . | . . . Slashing Weapon . | . . . Piercing Weapon . | . . . Special Melee Weapon . | . . . Unidentified Prototypes . | . . . Parts Lost 7 | . 1 6 Power . | . . . Propulsion 4 | . . 4 Utility . | . . . Weapon 3 | . 1 2 Highest Loss Streak 6 | . 1 6 To Critical Strikes . | . . . Average Slot Usage (%) 97 | . 97 97 Engine 14 | . 14 14 Treads 27 | . 28 26 Device 14 | . 14 14 Storage 14 | . 14 14 Energy Gun 2 | . 3 . Energy Cannon 16 | . 15 26 Ballistic Gun 6 | . 7 . Naked Turns . | . . . Heaviest Build 94 | 15 94 94 Greatest Support 40 | 40 40 40 Greatest Overweight (x) 9 | . 2 9 Average Overweight (x) . | . . 2 Largest Inventory Capacity 25 | 8 25 25 Average Capacity 19 | 7 18 25 Most Carried 20 | 5 19 20 Average Carried 13 | 2 12 18 Final Capacity 25 | 8 25 25 Final Carried 19 | 5 19 17 Class Distribution -------------------- 100% | Mutant Dominant Class ---------------- Mutant | -10/Materials Mutant | -10/Mines Resources | -11 -10 -10 ----------- Run | Yrd Mat Min Matter Collected 542 | 285 208 49 Remotely . | . . . Salvage Created 614 | 107 424 83 Parts 31 | 5 22 4 Haulers Intercepted 2 | . 2 . Recyclers Shooed . | . . . Parts Field Recycled . | . . . Retrieved Matter . | . . . Parts Self-Destructed . | . . . Prevented . | . . . Kills | -11 -10 -10 ------- Run | Yrd Mat Min Combat Hostiles Destroyed 10 | . 8 2 Guns 1 | . 1 . Cannons 6 | . 4 2 AOE 3 | . 3 . Classes Destroyed 7 | 2 5 . Tunneler 1 | 1 . . Hauler 2 | . 2 . Recycler 2 | 1 1 . Operator 1 | . 1 . Watcher 2 | . 2 . Swarmer 3 | . 3 . Grunt 7 | . 5 2 Best Kill Streak 6 | 2 6 1 Combat Bots Only 3 | . 3 1 Max Kills in Single Turn 4 | 1 4 1 Gunslinging . | . . . Exploded 3 | . 3 . Melee . | . . . Uniques/NPCs Destroyed . | . . . Combat | -11 -10 -10 -------- Run | Yrd Mat Min Hostile Shots Fired 62 | . 37 25 Missed 8 | . 4 4 Damage Taken 1137 | . 467 670 Core 253 | . 54 199 Absorbed by Shields . | . . . Core Remaining (%) 100 | 100 . . Volleys Fired 55 | 5 45 5 Largest 2 | 1 2 2 Hottest 136 | 20 88 136 Shots Fired 94 | 5 79 10 Gun 44 | 5 39 . Cannon 49 | . 39 10 Launcher 1 | . 1 . Special . | . . . Kinetic 44 | 5 39 . Thermal 49 | . 39 10 Explosive 1 | . 1 . Electromagnetic . | . . . Robot Hit Streak 8 | 5 8 8 Robot Miss Streak 3 | . 3 1 Penetration Max . | . . . Secondary Targets . | . . . Shots Hit Robots 59 | 5 48 6 Core Hits 28 | 3 21 4 Critical Kills . | . . . Critical Parts Destroyed . | . . . Critical Strikes . | . . . Melee Attacks . | . . . Impact . | . . . Slashing . | . . . Piercing . | . . . Sneak Attacks . | . . . Combat Hostiles . | . . . Follow-up Attacks . | . . . Damage Inflicted 1183 | 62 990 131 Guns 324 | 62 262 . Cannons 658 | . 527 131 Explosions 175 | . 175 . Melee . | . . . Ramming 26 | . 26 . Kinetic 324 | 62 262 . Thermal 658 | . 527 131 Explosive 175 | . 175 . Electromagnetic . | . . . Impact . | . . . Slashing . | . . . Piercing . | . . . Highest Corruption . | . . . Average Corruption . | . . . Corruption Purged . | . . . Corruption Blocked . | . . . Overload Shots . | . . . Overflow Damage 8 | . 8 . Projectiles 8 | . 8 . Explosions . | . . . Melee . | . . . Knockbacks 1 | . 1 . Impact 1 | . 1 . Kinetic . | . . . Secondary . | . . . Self-Inflicted Damage 20 | . 20 . Shots 1 | . 1 . Rammed 3 | . 3 . Targets Rammed 3 | . 3 . Kicked . | . . . Crushed . | . . . Highest Temperature 432 | . 432 96 Average Temperature 120 | . 131 39 Received Heat Transfer 354 | . 255 99 Effects 4 | . 4 . Shutdowns 1 | . 1 . Energy Bleed 1 | . 1 . Interference 1 | . 1 . Matter Decay 1 | . 1 . Siege Activations . | . . . Robots Corrupted . | . . . Combat Hostiles . | . . . Parts Fried . | . . . Impact Corruptions . | . . . Robots Melted . | . . . Combat Hostiles . | . . . Parts Melted 1 | . 1 . Heat Transferred 1147 | . 925 222 Parts Sabotaged . | . . . Parts Stolen . | . . . Parts Stripped . | . . . Power Chain Reactions . | . . . Alert | -11 -10 -10 ------- Run | Yrd Mat Min Peak Influence 134 | 10 134 65 Initial 6 | . 6 . Average 53 | 2 60 31 Maximum Alert Level . | . . . Low Security (%) 100 | 100 100 100 Level 1 . | . . . Level 2 . | . . . Level 3 . | . . . Level 4 . | . . . Level 5 . | . . . High Security . | . . . Max Security . | . . . Squads Dispatched 2 | . 1 1 Investigation 1 | . . 1 Extermination . | . . . Reinforcement 1 | . 1 . Assault . | . . . Garrison . | . . . Intercept . | . . . Searches Triggered . | . . . Construction Impeded . | . . . Haulers Reinforced . | . . . Active Scanning Responses . | . . . Cargo Convoy Interrupts . | . . . Stealth | -11 -10 -10 --------- Run | Yrd Mat Min Distress Signals 1 | . 1 . Communications Jammed . | . . . Distress Signals . | . . . Times Spotted 25 | . 14 11 Peak Tracking Total 9 | . 4 9 Tactical Retreats . | . . . Traps | -11 -10 -10 ------- Run | Yrd Mat Min Traps Triggered 1 | . 1 . Indirectly . | . . . Trap Hack Attempts . | . . . Triggered . | . . . Disarmed . | . . . Reprogrammed . | . . . Reused . | . . . Traps Extracted . | . . . Installed . | . . . Triggered . | . . . Machines | -11 -10 -10 ---------- Run | Yrd Mat Min Machines Disabled 1 | . 1 . Max in Single Turn 1 | . 1 . Machines Repaired . | . . . Machines Dismantled . | . . . Machines Sabotaged . | . . . Overloaded Fab Kills . | . . . Hacking | -11 -10 -10 --------- Run | Yrd Mat Min Machines Accessed 8 | . 7 1 Terminals 7 | . 6 1 Fabricators . | . . . Repair Stations . | . . . Recycling Units 1 | . 1 . Scanalyzers . | . . . Garrison Access . | . . . Total Hacks 19 | . 17 2 Successful 7 | . 7 . Failed 12 | . 10 2 Catastrophic 4 | . 3 1 Database Lockouts . | . . . Manual 9 | . 7 2 Terminals 16 | . 14 2 Fabricators . | . . . Repair Stations . | . . . Recycling Units 3 | . 3 . Scanalyzers . | . . . Garrison Access . | . . . Terminal Hacks 6 | . 6 . Robot Analysis 3 | . 3 . Terminal Index 1 | . 1 . Locate Traps 2 | . 2 . Fabricator Hacks . | . . . Repair Station Hacks . | . . . Recycling Unit Hacks 1 | . 1 . Report Inventory 1 | . 1 . Scanalyzer . | . . . Garrison Access Hacks . | . . . Unauthorized Hacks . | . . . Terminals . | . . . Fabricators . | . . . Repair Stations . | . . . Recycling Units . | . . . Scanalyzers . | . . . Garrison Access . | . . . Data Cores Recovered . | . . . Used . | . . . Hacking Detections 7 | . 6 1 Full Trace Events 1 | . . 1 Feedback Events . | . . . Feedback Blocked . | . . . Robot Schematics Acquired . | . . . Robots Built . | . . . Authchips . | . . . Time . | . . . Total Robot Build Rating . | . . . Part Schematics Acquired . | . . . Parts Built . | . . . Authchips . | . . . Time . | . . . Total Part Build Rating . | . . . Parts Repaired . | . . . Time . | . . . Parts Recycled . | . . . Recycled Matter . | . . . Retrieved Matter . | . . . Retrieved Components . | . . . Parts Scanalyzed . | . . . Part Schematics Acquired . | . . . Parts Damaged . | . . . Bothacking | -11 -10 -10 ------------ Run | Yrd Mat Min Used RIF Installer . | . . . Robots Hacked . | . . . Non-combat . | . . . Combat . | . . . Robot Hacks Applied . | . . . Relay Couplers Released . | . . . Fabnet Peak Effective % . | . . . Robots Rewired . | . . . Allies Hacked . | . . . Hacks Repelled . | . . . Allies | -11 -10 -10 -------- Run | Yrd Mat Min Total Allies . | . . . Largest Group . | . . . Highest-Rated Group . | . . . Highest-Rated Ally . | . . . Total Orders . | . . . Ally Attacks . | . . . Total Damage . | . . . Kills . | . . . Allies Corrupted . | . . . Allies Melted . | . . . Intel | -11 -10 -10 ------- Run | Yrd Mat Min Robot Analysis Total 3 | . 3 . Derelict Logs Recovered . | . . . Drone Launches . | . . . Drone Recoveries . | . . . Exploration | -11 -10 -10 ------------- Run | Yrd Mat Min Turns Passed 1894 | 93 1563 238 Spaces Moved 705 | 45 592 68 Core 3 | 3 . . Treads 700 | 42 592 66 Legs . | . . . Wheels 2 | . . 2 Hover . | . . . Flight . | . . . Fastest Speed 50 | 50 160 215 Average Speed 234 | 152 230 321 Slowest Speed 480 | 160 320 480 Overloaded Moves . | . . . Propulsion Burnouts . | . . . Robots Hopped . | . . . Cave-ins Triggered . | . . . Exploration Rate (%) 36 | 5 78 27 Regions Visited 2 Branch Regions 1 Pre-discovered Areas . | . . . Known Exits Taken . | . . . Unknown Exits Taken 2 | 1 1 . Scrap Searched . | . . . Spaces Dug . | . . . Terrain Destroyed 11 | . 11 . Melee . | . . . Projectile . | . . . AOE 11 | . 11 . Terrain Rammed . | . . . Walls Destroyed . | . . . Machines Disabled . | . . . Actions | -11 -10 -10 --------- Run | Yrd Mat Min Total 849 | 61 710 78 Wait 35 | . 35 . Move 703 | 44 591 68 Hop . | . . . Pick Up 23 | 5 18 . Fast Attach 9 | 7 2 . Attach 3 | . 1 2 Detach 2 | . 2 . Swap 7 | . 5 2 Drop 9 | . 8 1 Fire 55 | 5 45 5 Melee . | . . . Ram . | . . . Kick . | . . . Crush 3 | . 3 . Escape Stasis . | . . . Rewire . | . . . Trap . | . . . Miscellaneous . | . . . Route ------- -11/Scrapyard -10/Materials (discovered 3 exits: [*Mat x2] / *Min) -10/Mines History --------- Turn | Location | Event 43 | -11/Scrapyard | Discovered new exit (range 14) 94 | -11/Scrapyard | Entered Materials 310 | -10/Materials | Build established: Mutant 578 | -10/Materials | Discovered new exit (range 14) 944 | -10/Materials | Discovered new exit (range 5) 1077 | -10/Materials | Discovered new exit (range 11) 1657 | -10/Materials | Entered Mines 1861 | -10/Mines | Assembled infested the area 1882 | -10/Mines | Core integrity fell below 50% 1888 | -10/Mines | Core integrity fell below 20% 1895 | -10/Mines | Destroyed by D-53 Grenadier with Mini Grenade Launcher Last Messages --------------- 01877_ D-53 Grenadier unfolds itself. 01877_ Lgt. Treads destroyed. 01881_ Wheel destroyed. 01885_ U-05 Engineer lays Concrete. 01885_ Particle Cannon destroyed. 01885_ Lgt. Treads destroyed. 01886_ U-05 Engineer lays Concrete. 01891_ U-05 Engineer builds a Wall. 01891_ as-23646 destroyed. 01893_ The unstable cave ceiling collapses. 01893_ D-53 Grenadier destroyed. 01893_ as-40024 destroyed. 01894_ R-06 Scavenger collects Launcher Guidance Computer. 01894_ Lgt. Treads destroyed. 01895_ The unstable cave ceiling collapses. 01895_ D-53 Grenadier suffers critical hit (Destroy). 01895_ U-05 Engineer lays Concrete. 01895_ as-81833 destroyed. Map ----- +----------------------------------------------------+ | ???????????????????????????????????????????? | | ???????????????????????????????????????????? | | ???????????????????????????????????????????? | | ???????????????????????????????????????????? | | ???????????????????????????????????????????? | | ???????????????????????????????????????????? | | ???????????????????????????????????????????? | | ???????????????????????????????????????????? | | ???????????????????????????????????????????? | | ???????????????????????????????????????????? | | ???????????????????????????????????????????? | | ???? ??????????????????????????????????????? | | ???? #????????????????????????????????????? | | ???? #????????????????????????????????????? | | ??? ###??????????????????????????????????? | | ??? ???????????????????????????????????? | | ??? ???????????????????????????????????? | | ??? ????????????#####???????????????????? | | ??? ????????????# " ????????????????????? | | ??? ?????????????# %#????????????????????? | | ?## ????????????## #????????????????????? | | ## ??###???????## #####????????????????? | | # ??# ??????## # ###?###??????????? | | ???# #??????## r ! # ##?????????? | | ???# #???#### u d%= #?????????? | | #???# #??## a ! @ #?????????? | | ##### #??# ##?????????? | | #?## g ##??????????? | | ###### ### # ##???????????? | | #?????# ### ##????????????? | | #??????# #?# #?????????????? | | ???????# # # ##?????????????? | | ???????# ## # # #??????????????? | | ???????#*## # % ??????????????? | | ?????###%### ### a #?????????????? | | ##???#= =#?#####? # # ?????????????? | | ??# ###??????###### ?????????????? | | ##=#?????????????# =% ????????????? | | ############### ????????????? | | ### ## ## =% #####???????????? | | ?????# #? a##???????????????? | | ?????#### """ #? ?????????????????? | | ????????# """ #??????????????????????? | | ????????# """ #??????????????????????? | | ????????# #??????????????????????? | | ????????# #??????????????????????? | | ????????# #??????????????????????? | | ????????#########T###??????????????????????? | | ????????????????###????????????????????????? | | ???????????????????????????????????????????? | +----------------------------------------------------+ Best States ------------- Heat Dissipation 35 Energy Generation 10 Energy Capacity 250 Matter Stores 300 Matter Capacity 300 Sight Range 16 Terrain Scan Range 16 Terrain Scan Density 10 Evasion (%) 40 Recoil Reduction 2 Item Schematics ----------------- None Robot Schematics ------------------ None Fabricated ------------ Nothing Alien Tech Used ----------------- None Achievements -------------- None Challenges ------------ None Game ------ Seed HeatForceShredder Manual? 0 Play Time 00:10:11 Cumulative 47.5 hours Start 2024.04.25 @ 21:55:03 End 2024.04.25 @ 22:04:36 Sessions 1 Manual Loads 0 Difficulty Rogue Special Mode None Game No. 63 Rogue 63 Adventurer 0 Explorer 0 Win Type - Total 1 Types 1/0/0/0/0/0/0/0/0 Lore% 27 Gallery% 42 Achievement% 31 Wizard Run 0 Options --------- Layout 1 ASCII 0 Keyboard 0 Movement Mouse Keybinds 0 Fullscreen 1 Font 24/Smallcaps Map View 50x35 Zoom Use 0% Tactical HUD 1 Map Filters NONE Filters NONE Steam 1 RUN: 02b009ab-7345-4dd9-a206-bf555320324e